Workbook

Sheet 표지
A5: 2020학년도
A6: 타이뻬이한국학교회계 세입세출 예산
A19: 타 이 뻬 이 한 국 학 교

Sheet 총칙
A2: 예 산 총 칙
B4: 제 1 조 2020학년도 타이뻬이한국학교회계 세입ㆍ세출 예산 총액은 세입ㆍ세출 각각 18,274,078NTD로
B5: 하며, 세입ㆍ세출의 명세는 『세입ㆍ세출예산서』와 같다.
B7: 제2조 국가로부터 용도가 지정되어 교부된 경비 또는 수익자부담경비는 추가경정예산의 성립 전에
B8: 사용할 수 있으며, 이를 차기 추가경정예산에 반영한다.
B10: 제3조 동일 예산 관내의 항간 또는 목간에 예산의 과부족이 있는 경우에는 사학기관재무ㆍ회계규칙
B11: 제21조 제3항의 규정에 의하여 상호 전용할 수 있다.
B12: 단, 회계연도 경과 후에는 예산을 전용할 수 없으며, 업무추진비에 충당하기 위하여 다른
B13: 비목에서 전용할 수 없다.
B15: 제4조 다음의 경비에 부족이 생겼을 때에는 비목 상호간 또는 타 비목으로부터 이용할 수 있다.
B16: 단; 인건비 및 시설비의 예산은 다른 과목으로 이용할 수 없다.
B17: 1. 교원 및 직원 인건비, 연구비, 수당
B18: 2. 비정규직보수, 강사료
B19: 3. 세금, 공과금, 반환금

Sheet 세입
A1: 2020학년도 타이뻬이한국학교회계 세입․세출예산서
A2: (회계연도 2020년 3월 1일 ~ 2021년 2월 28일)
A3: □ 세입
A4: 【단위 : 현지화 NTD】
A5: 구 분 | C5: (Y-1)예산 | D5: (Y-2)결산 | E5: (Y)예산 | F5: 증감 | G5: 산출기초(단위: NTD) | J5: 비고
C6: (A) | D6: (B) | E6: (C) | F6: (C-A)
A7: 학부모부담수입 | C7: =C9+C12+C18 -> 5,935,010 | D7: 0 | E7: =E9+E12+E16+E18 -> 4,638,400 | F7: =E7-C7 -> -1,296,610
B9: - 입학금 | C9: 420,000 | E9: =I9 -> 300,000 | F9: =E9-C9 -> -120,000 | G9: 1. 입학금 | I9: =SUM(I10:I11) -> 300,000
G10: ㅇ유치원 30,000NTD×5명 | H10: = | I10: =30000*5 -> 150,000
G11: ㅇ초등학생 30,000NTD×5명 | H11: = | I11: =30000*5 -> 150,000
B12: - 수업료 | C12: 3,202,500 | E12: =I12 -> 3,430,000 | F12: =E12-C12 -> 227,500 | G12: 1. 수업료 | I12: =SUM(I13:I14) -> 3,430,000
G13: ㅇ유치원 40,000NTD×20명×2회 | H13: = | I13: =40000*20*2 -> 1,600,000
G14: ㅇ초등학생 30,500NTD×30명×2회 | H14: = | I14: =30500*30*2 -> 1,830,000
G15: 2. 지난년도 수업료 | I15: 0
B16: - 학교운영지원비 | C16: 0 | D16: 0 | E16: =I16 -> 0 | F16: =E16-C16 -> 0 | G16: 1. 학교운영지원비 | I16: 0
B18: - 수익자부담경비 | C18: 2,312,510 | E18: =I18+I20+I26+I28+I24 -> 908,400 | F18: =E18-C18 -> -1,404,110 | G18: 1. 급식비 | I18: =SUM(I19:I19) -> 0
G19: ㅇ학생 | H19: = | I19: 0
G20: 2. 현장체험학습비 | I20: =I21+I22+I23 -> 48,000
G21: ㅇ초등 현장체험학습비 500NTD×37명×2회 | H21: = | I21: =500*37*2 -> 37,000
G22: ㅇ유치원 현장체험학습비 220NTD×25명×2회 | H22: = | I22: =220*25*2 -> 11,000
G24: 3. 토요한글학교운영비 | I24: =SUM(I25:I25) -> 192,000
G25: ㅇ토요한글학교 수업료 9,600NTD×10명×2회 | H25: = | I25: =9600*2*10 -> 192,000
G26: 4. 방과후교육활동비 | I26: =SUM(I27:I27) -> 223,400
G27: ㅇ방과후교육활동비 | H27: = | I27: 223,400
G28: 5. 기타수익자부담경비 | I28: =SUM(I29:I30) -> 445,000
G29: ㅇ통학버스비 140NTD×17명×182일 | H29: = | I29: 430,000
G30: ㅇ졸업앨범(유치원) 10명× 1,500 NTD | H30: = | I30: =1500*10 -> 15,000
A31: 교육부지원금 | C31: =SUM(C33:C48) -> 10,238,266 | D31: 0 | E31: =SUM(E33,E35,E37,E42,E44,E40,E46) -> 10,806,397 | F31: =F33+F35+F37+F40+F42+F44+F46 -> 568,131
B33: - 현재채용교직원인건비 | C33: 4,995,454 | E33: =I33 -> 5,573,940 | F33: =E33-C33 -> 578,486 | G33: 1. 현재채용교직원인건비 | I33: =SUM(I34) -> 5,573,940
G34: ㅇ인건비 5,573,940NTD×1년 | H34: = | I34: =185798*30 -> 5,573,940
B35: - 운영비 | C35: 4,387,984 | E35: =I35 -> 4,571,040 | F35: =E35-C35 -> 183,056 | G35: 1. 운영비 | I35: =SUM(I36) -> 4,571,040
G36: ㅇ운영비 4,571,040NTD×1년 | H36: = | I36: =152368*30 -> 4,571,040
B37: - 임차료 | C37: 43,167 | E37: =I37 -> 49,817 | F37: =E37-C37 -> 6,650 | G37: 1. 임차료 | I37: =SUM(I38:I39) -> 49,817
G38: ㅇ나대지 49,817NTD(1년)×1회 | H38: = | I38: 49,817
H39: =
B40: - 저소득층자녀지원 | C40: 79,461 | D40: 0 | E40: =I40 -> 30,000 | F40: =E40-C40 -> -49,461 | G40: 1. 저소득층자녀지원 | I40: =I41 -> 30,000
G41: ㅇ저소득층자녀지원금 30,000NTD×1회 | I41: 30,000
B42: - 방과후학교지원 | C42: 0 | D42: 0 | E42: =I42 -> 88,000 | F42: =E42-C42 -> 88,000 | G42: 1. 방과후학교지원 | I42: =SUM(I43) -> 88,000
G43: ㅇ방과후학교운영비 | H43: = | I43: 88,000
B44: - 시설(대수선)비 | C44: 0 | E44: =I44 -> 0 | F44: =E44-C44 -> 0 | G44: 1. 시설(대수선)비 | I44: 0
B46: - 기타교육부지원금 | C46: 732,200 | D46: 0 | E46: =I46 -> 493,600 | F46: =E46-C46 -> -238,600 | G46: 1. 기타교육부지원 | I46: =SUM(I47:I48) -> 493,600
G47: ㅇ토요한글학교운영비(재단지원금) | H47: = | I47: 153,600
G48: ㅇ교수학습재료구입비 | H48: = | I48: 340,000
A49: 자체수입 | C49: =SUM(C51+C55) -> 68,000 | D49: 0 | E49: =E51+E55 -> 11,500 | F49: =SUM(F51,F55) -> -56,500
B51: - 사용료및수수료 | C51: 62,000 | E51: =I51+I53 -> 5,500 | F51: =E51-C51 -> -56,500 | G51: 1.사용료 | I51: =SUM(I52) -> 3,500
G52: ㅇ 교실 및 강당 사용료 3,500NTD×1회 | H52: = | I52: 3,500
G53: 2. 수수료 | I53: =SUM(I54) -> 2,000
G54: ㅇ제증명발급 수수료 100NTD×3건+1,700 NTD | H54: = | I54: =100*3+1700 -> 2,000
B55: - 잡수입 | C55: 6,000 | E55: =I55+I57+I58 -> 6,000 | F55: =E55-C55 -> 0 | G55: 1. 이자수입 | I55: =SUM(I56) -> 6,000
G56: ㅇ예금이자 3,000NTD×2회 | H56: = | I56: =3000*2 -> 6,000
G57: 2. 지난년도 수입 | I57: 0
G58: 3. 기타잡수입 | I58: =SUM(I59:I59) -> 0
H59: =
A60: 전입금 및 지원금 | C60: =SUM(C62:C67) -> 0 | D60: 0 | E60: =E62+E64+E66 -> 0 | F60: 0
B62: - 학교발전기금전입금 | C62: 0 | D62: 0 | E62: =I62 -> 0 | F62: =E62-C62 -> 0 | G62: 1. 학교발전기금전입금 | I62: =I63 -> 0
I63: 0
B64: - 법인전입금 | C64: 0 | D64: 0 | E64: =I64 -> 0 | F64: =E64-C64 -> 0 | G64: 1. 법인전입금 | I64: 0
B66: - 기타지원금 | C66: 0 | D66: 0 | E66: =I66 -> 0 | F66: =E66-C66 -> 0 | G66: 1. 기타지원금 | I66: 0
A68: 기타수입 | C68: =SUM(C70:C80) -> 190,000 | D68: 0 | E68: =E70+E72+E77+E79 -> 2,817,781 | F68: =SUM(F70,F72,F77,F79) -> 2,627,781
B70: - 과년도 수입 | C70: 0 | D70: 0 | E70: =I70 -> 0 | F70: =E70-C70 -> 0 | G70: 1. 과년도수입 | I70: 0
B72: - 이월금 | C72: 190,000 | E72: =I72+I74+I75+I76 -> 2,817,781 | F72: =E72-C72 -> 2,627,781 | G72: 1. 순세계잉여금 | I72: =I73 -> 1,569,496
G73: ㅇ 2019학년도 회계 잉여금 | H73: = | I73: 1,569,496
G74: 2. 계속비 | I74: 0
G75: 3. 이월사업비
G76: ㅇ 급식실 조성 사업비(교육부지원금) | I76: 1,248,285
B77: - 적립금 | C77: 0 | D77: 0 | E77: =I77 -> 0 | F77: =E77-C77 -> 0 | G77: 1. 적립금 | I77: 0
B79: - 환차익 | C79: 0 | D79: 0 | E79: =I79 -> 0 | F79: =E79-C79 -> 0 | G79: 1. 환차익 | I79: 0
A81: 합 계 | C81: =C68+C60+C49+C31+C7 -> 16,431,276 | D81: 0 | E81: =SUM(E68,E60,E49,E31,E7) -> 18,274,078 | F81: =E81-C81 -> 1,842,802

Sheet 세출
A1: □ 세출
A2: 【단위 : 현지화(NTD, 괄호안 USD, 1USD=29NTD)】
A3: 구 분 | C3: (Y-1)예산 | D3: (Y-2)결산 | E3: (Y)예산 | F3: 증감 | G3: 산출기초(단위: NTDD) | J3: 비고
C4: (A) | D4: (B) | E4: (C) | F4: (C-A)
A5: 인건비 | C5: =SUM(C7,C24,C48) -> 8,797,380 | D5: 0 | E5: =SUM(E7,E24,E48) -> 11,089,390 | F5: =E5-C5 -> 2,292,010
B7: - 교원 | C7: 6,469,300 | E7: =SUM(I7,I10,I19,I21) -> 5,490,800 | F7: =E7-C7 -> -978,500 | G7: 1. 기본급 | I7: =SUM(I8:I9) -> 2,960,800
G8: ㅇ교사 45,000NTD×4명×12월 | H8: = | I8: =45000*4*12 -> 2,160,000
G9: ㅇ시간강사 550NTD×2명×4시간×182일 | H9: = | I9: =550*2*4*182 -> 800,800
G10: 2. 수당 | I10: =SUM(I11:I18) -> 2,166,000
G11: ㅇ담임수당 4,000NTD×4명×12월 | H11: = | I11: =4000*4*12 -> 192,000
G12: ㅇ부장수당 4,000NTD×1명×12월+2,000NTD×2명×12월 | H12: = | I12: =4000*1*12+2000*2*12 -> 96,000
G13: ㅇ복지수당 7,000NTD×4명×12월 | H13: = | I13: =7000*4*12 -> 336,000
G14: ㅇ주택수당 18,000NTD×4명×12월 | H14: = | I14: =18000*4*12 -> 864,000
G15: ㅇ부양가족 추가 주택수당 2,000NTD×4명×12월 | H15: = | I15: =2000*4*12 -> 96,000
G16: ㅇ경력수당 7,000NTD×4명×12월 | H16: = | I16: =7000*4*12 -> 336,000
G17: ㅇ보전수당 4,000NTD×4명×12월 | H17: = | I17: =4000*4*12 -> 192,000
G18: ㅇ시간외근무수당 300NTD×5명×3시간×12월 | H18: = | I18: =300*5*3*12 -> 54,000
G19: 3. 복리후생비 | I19: =SUM(I20) -> 216,000
G20: ㅇ명절휴가비 45,000NTD×4명×2회×60% | H20: = | I20: =45000*4*2*0.6 -> 216,000
G21: 4. 부담금 | I21: =SUM(I22:I23) -> 148,000
G22: ㅇ건강보험기관부담금부담금 17,000NTD×4명 | H22: = | I22: =17000*4 -> 68,000
G23: ㅇ건강보험보충부담금(2018년도분) | H23: = | I23: 80,000
B24: - 직원 및 계약교직원 | C24: 1,834,080 | E24: =SUM(I24,I36,I43,I45) -> 5,298,590 | F24: =E24-C24 -> 3,464,510 | G24: 1. 기본급 | I24: =SUM(I25:I35) -> 4,390,190
G25: ㅇ실장 45,000NTD×1명×12월 | H25: = | I25: =45000*12 -> 540,000
G26: ㅇ행정원 32,000NTD×1명×12월 | H26: = | I26: =32000*12 -> 384,000
G27: ㅇ유치원 교육전담사 230NTD×1명×8시간×182일 | H27: = | I27: =230*8*182 -> 334,880
G28: ㅇ유치원 보조원 170NTD×1명×6시간×182일 | H28: = | I28: =170*1*6*182 -> 185,640
G29: ㅇ영어 강사수당 660NTD×3명×4시간×180일 | H29: = | I29: =660*3*4*180 -> 1,425,600
G30: ㅇ중국어 강사수당 610NTD×1명×4시간×143일+560NTD×1명×4시간×143일 +610NTD×1명×3.5시간×143일 | H30: = | I30: =610*4*143+560*4*143+610*3.5*143 -> 974,545
G31: ㅇ외국어강사 부장수당 2,000NTD×2명×10월 | H31: = | I31: =2000*2*10 -> 40,000
G32: ㅇ통학버스 안전도우미 인건비 160NTD×1명×182일×5시간+160NTD×1명×182일×2.5시간 | H32: = | I32: =160*182*5+160*182*2.5 -> 218,400
G33: ㅇ통학버스 기사 안건비(22일분) 325NTD×1명×22일×5시간+425NTD×1명×22일×2.5시간 | H33: = | I33: =325*22*5+425*22*2.5 -> 59,125
G34: ㅇ태권도 강사수당 900NTD×1명×3시간×40회 | H34: = | I34: =900*3*40 -> 108,000
G35: ㅇ화장실 청소원 인건비 12,000NTD×10월 | H35: = | I35: =12000*10 -> 120,000
G36: 2. 수당 | I36: =SUM(I37:I42) -> 585,600
G37: ㅇ직책수당(실장) 4,000NTD×1명×12월 | H37: = | I37: =4000*12 -> 48,000
G38: ㅇ경력수당(실장) 6,000NTD×1명×12월 | H38: = | I38: =6000*12 -> 72,000
G39: ㅇ복지수당 7,000NTD×2명×12월 | H39: = | I39: =7000*2*12 -> 168,000
G40: ㅇ부양가족 추가 주택수당 2,000NTD×1명×12월 | H40: = | I40: =2000*1*12 -> 24,000
G41: ㅇ주택수당(실장) 18,000NTD×1명×12월 | H41: = | I41: =18000*12 -> 216,000
G42: ㅇ시간외근무수당 300NTD×2명×8시간×12월 | H42: = | I42: =300*2*8*12 -> 57,600
G43: 3. 복리후생비 | I43: =SUM(I44:I44) -> 92,400
G44: ㅇ명절휴가비 38,500NTD×2명×2회×60% | H44: = | I44: =38500*2*2*0.6 -> 92,400
G45: 4. 부담금 | I45: =SUM(I46:I47) -> 230,400
G46: ㅇ건강보험기관부담금부담금 16,000NTD×12월 | H46: = | I46: =16000*12 -> 192,000
G47: ㅇ노동보험기관부담금 3,200NTD×12월 | H47: = | I47: =3200*12 -> 38,400
B48: - 퇴직적립금 | C48: 494,000 | E48: =SUM(I48,I50) -> 300,000 | F48: =E48-C48 -> -194,000 | G48: 1. 퇴휴금 | I48: =SUM(I49:I49) -> 210,000
G49: ㅇ대만국적자 직원 퇴휴금 | H49: = | I49: 210,000
G50: 2.재외교육기여장려금 | I50: =SUM(I51:I51) -> 90,000
G51: ㅇ교사 90,000NTD×1명 | H51: = | I51: =90000*1 -> 90,000
A52: 학교운영비 | C52: =SUM(C54,C87,C136,C158) -> 5,177,972 | D52: 0 | E52: =E54+E87+E136+E158 -> 3,083,768 | F52: =E52-C52 -> -2,094,204 | H52: =
B54: - 일반운영비 | C54: 1,490,962 | E54: =I54+I69+I82+I85 -> 1,367,938 | F54: =E54-C54 -> -123,024 | G54: 1. 교육지원부 운영 | I54: =SUM(I55:I68) -> 356,350
G55: ㅇ여비(국내) 200원×12명×2회×12월 | H55: = | I55: =200*12*2*12 -> 57,600
G56: ㅇ여비(국외출장) 20,000원×2명×2회+96,000NTD | H56: = | I56: =20000*2*2+96000 -> 176,000
G57: ㅇ교직원 채용경비 32,000원×1회 | H57: = | I57: =32000*1 -> 32,000
G58: ㅇ초등현장학습 인솔 교직원 중식 300NTD×8명×1회 | H58: = | I58: =300*8*4 -> 9,600
G59: ㅇ초등현장학습 인솔교직원 활동비 300NTD×8명×2회 | H59: = | I59: =300*8*2 -> 4,800
G60: ㅇ유치원현장학습 인솔교직원 중식 300NTD×3명×1회 | H60: = | I60: =300*3*1 -> 900
G61: ㅇ유치원현장학습 인솔교직원 활동비 300NTD×3명×1회 | H61: = | I61: =300*3*1 -> 900
G62: ㅇ거류비자 및 공작증 신청 4,500NTD×1명 | H62: = | I62: 4,500
G63: ㅇ교직원 귀임 및 부임 항공료 9,000NTD×1명 | H63: = | I63: 9,000
G64: ㅇ홈페이지 도메인 사용료 750NTD×1년 | H64: = | I64: 750
G65: ㅇ예금잔액증명 발급수수료 500NTD×5회 | H65: = | I65: =500*5 -> 2,500
G66: ㅇ타행송금및환전수수료(납입금환불) 30NTD×50회 | H66: = | I66: =30*50 -> 1,500
G67: ㅇ행정장비 유지보수 6,300NTD×1회 | H67: = | I67: =6300 -> 6,300
G68: ㅇ행정장비 소모품 구입 10,000NTD×5회 | H68: = | I68: =10000*5 -> 50,000
G69: 2. 학교시설장비유지 | I69: =SUM(I70:I81) -> 892,200
G70: ㅇ전화 및 인터넷요금 5,500N*12월 | H70: = | I70: =5500*12 -> 66,000
G71: ㅇ전기요금 20,000NTD×12월 | H71: = | I71: =20000*12 -> 240,000
G72: ㅇ상하수도요금 500NTD×12월 | H72: = | I72: =500*12 -> 6,000
G73: ㅇ우편요금 150NTD×12월 | H73: = | I73: =150*12 -> 1,800
G74: ㅇ건물 청소용역 20,000NTD×10월 | H74: = | I74: =20000*10 -> 200,000
G75: ㅇ화장실 소모품 및 청소용품 2,000NTD×4회 | H75: = | I75: =2000*4 -> 8,000
G76: ㅇ기계경비용역료 7,000NTD×12월 | H76: = | I76: =7000*12 -> 84,000
G77: ㅇ시설소모품구입 10,000NTD×5회 | H77: = | I77: =10000*5 -> 50,000
G78: ㅇ소방정밀점검 12,000NTD×1회 | H78: = | I78: =12000*1 -> 12,000
G79: ㅇ승강기안전관리용역 3,000NTD×12월 | H79: = | I79: =3000*12 -> 36,000
G80: ㅇ전기안전관리용역 3,200NTD×12월 | H80: = | I80: =3200*12 -> 38,400
G81: ㅇ소규모수선 10,000NTD×15회 | H81: = | I81: =10000*15 -> 150,000
G82: 3. 교직원 복지 및 역량강화 | I82: =SUM(I83:I84) -> 57,720
G83: ㅇ유치원 보조원 중식 지원 120NTD×1명×181일 | H83: = | I83: =120*1*181 -> 21,720
G84: ㅇ교직원 자율연수비 1,000NTD×3명×12월 | H84: = | I84: =1000*3*12 -> 36,000
G85: 4. 임차료 | I85: =SUM(I86:I86) -> 61,668
G86: ㅇ나대지 61,668NTD×1년 | H86: = | I86: =61668 -> 61,668
B87: - 교수학습 활동비 | C87: 2,806,199 | E87: =SUM(I87,I93,I95,I97,I102,I108,I110,I117,I121,I123,I125,I130,I132) -> 1,025,580 | F87: =E87-C87 -> -1,780,619 | G87: 1. 교과활동지원 | I87: =SUM(I88:I92) -> 400,000
G88: ㅇ학습준비물(교수학습자료지원금) 10,000NTD×35명 | H88: = | I88: =10000*35 -> 350,000
G89: ㅇ사무용품 구입(교수학습자료지원금) 2,000NTD×5회 | H89: = | I89: =2000*5 -> 10,000
G90: ㅇ복사용지(교수학습자료지원금) 5,000NTD×2회 | H90: = | I90: =5000*2 -> 10,000
G91: ㅇ행정장비 소모품(교수학습자료지원금) 4,000NTD×6회 | H91: = | I91: 24,000
G92: ㅇ보결수당 150NTD×40시간 | H92: = | I92: =150*40 -> 6,000
G93: 2. 예체능교과활동(초등학교) | I93: =SUM(I94:I94) -> 9,000
G94: ㅇ태권도복 600NTD×15벌 | H94: = | I94: =600*15 -> 9,000
G95: 3. 예체능교과활동(유치원) | I95: =SUM(I96:I96) -> 0
H96: =
G97: 4. 영어교과활동 | I97: =SUM(I98:I101) -> 71,200
G98: ㅇ학습준비물 100NTD×45명×2회 | H98: = | I98: =100*45*2 -> 9,000
G99: ㅇ공책 10NTD×45부×6회 | H99: = | I99: =10*45*6 -> 2,700
G100: ㅇ교재 1,300NTD×45부 | H100: = | I100: =1300*45 -> 58,500
G101: ㅇ행사물품 1,000NTD×1회 | H101: = | I101: =1000*1 -> 1,000
G102: 5. 중국어교과활동 | I102: =SUM(I103:I107) -> 48,900
G103: ㅇ학습준비물 100NTD×45명×2회 | H103: = | I103: =100*45*2 -> 9,000
G104: ㅇ공책 10NTD×45부×6회 | H104: = | I104: =10*45*6 -> 2,700
G105: ㅇ교재 400NTD×90부 | H105: = | I105: =400*90 -> 36,000
G106: ㅇ행사물품 1,000NTD×1회 | H106: = | I106: =1000*1 -> 1,000
G107: ㅇ중국어능력평가 우편요금 50NTD×4회 | H107: = | I107: 200
G108: 6.유치원 교과활동 | I108: =SUM(I109:I109) -> 30,000
G109: ㅇ학습준비물 600NTD×25명×2회 | H109: = | I109: =600*25*2 -> 30,000
G110: 7. 자율활동(초등학교) | I110: =SUM(I111:I116) -> 51,000
G111: ㅇ학급운영비 200NTD×40명×2회 | H111: = | I111: =200*40*2 -> 16,000
G112: ㅇ환경정리 500NTD×6학급 | H112: = | I112: 3,000
G113: ㅇ학예회 무대장식 4,000NTD×1회 | H113: = | I113: =4000*1 -> 4,000
G114: ㅇ학예회 준비물품 400NTD×40명 | H114: = | I114: 16,000
G115: ㅇ체육대회 준비물품 200NTD×55개 | H115: = | I115: =200*55 -> 11,000
G116: ㅇ체육대회 장소임대 1,000NTD×1회 | H116: = | I116: 1,000
G117: 8. 자율활동(유치원) | I117: =SUM(I118:I120) -> 14,500
G118: ㅇ학급운영비 200NTD×25명×2회 | H118: = | I118: =200*25*2 -> 10,000
G119: ㅇ학예회경비 200NTD×20명 | H119: = | I119: =200*20 -> 4,000
G120: ㅇ환경정리 500NTD×1학급 | H120: = | I120: 500
A121: · | G121: 9. 교무업무운영 | I121: =SUM(I122:I122) -> 4,000
G122: ㅇ학교교육계획서 제작 400NTD×10부 | H122: = | I122: 4,000
G123: 10 입학식 및 졸업식(초등학교) | I123: =SUM(I124:I124) -> 7,500
G124: ㅇ입학식 선물 500NTD×15명 | H124: = | I124: =500*15 -> 7,500
G125: 11. 입학식 및 졸업식(유치원) | I125: =SUM(I126:I129) -> 17,200
G126: ㅇ입학선물 300NTD×20명 | H126: = | I126: =300*20 -> 6,000
G127: ㅇ졸업사진 촬영(교원) 800NTD×3명 | H127: = | I127: =800*3 -> 2,400
G128: ㅇ졸업앨범 제작(학교보관용) 800NTD×1부 | H128: = | I128: =800*1 -> 800
G129: ㅇ졸업선물 800NTD×10명 | H129: = | I129: =800*10 -> 8,000
G130: 12. 토요한글학교 운영(재외동포재단지원금) | I130: =SUM(I131:I131) -> 153,600
G131: ㅇ강사비 | H131: = | I131: =1200*2*4*16 -> 153,600
G132: 13. 방과후학교운영 | I132: =SUM(I133:I135) -> 218,680
G133: ㅇ강사수당(교육부지원금) 600NTD×100시간 | H133: = | I133: 60,000
G134: ㅇ강사수당(학교자체지원금) 610NTD×56시간+610NTD×76시간+660NTD×76시간 | H134: = | I134: =610*56+610*76+660*76 -> 130,680
G135: ㅇ교재 및 재료비(교육부지원금) 2,800NTD×10회 | H135: = | I135: 28,000
A136: - 학생복리비 | C136: 856,811 | E136: =I136+I140+I145+I147+I152+I155+I157 -> 645,250 | F136: =E136-C136 -> -211,561 | G136: 1. 학생보건안전관리 | I136: =SUM(I137:I139) -> 46,650
G137: ㅇ학교안전공제회비(학생,교직원) 550NTD×53명 | H137: = | I137: =550*53 -> 29,150
G138: ㅇ응급학생 병원후송 500NTD×5회 | H138: = | I138: =500*5 -> 2,500
G139: ㅇ약품 1,500NTD×10회 | H139: = | I139: =1500*10 -> 15,000
G140: 2. 학교환경위생관리 | I140: =SUM(I141:I144) -> 39,800
G141: ㅇ정수기 필터교환 650NTD×2대×6회 | H141: = | I141: =650*2*6 -> 7,800
G142: ㅇ정수기 소독 3,500NTD×2대×1회 | H142: = | I142: =3500*2 -> 7,000
G143: ㅇ저수조 청소 5,000NTD×2회 | H143: = | I143: =5000*2 -> 10,000
G144: ㅇ교사 소독 5,000NTD×3회= | H144: = | I144: =5000*3 -> 15,000
G145: 3. 학교급식비 지원 | I145: =SUM(I146:I146) -> 207,000
G146: ㅇ간식비 지원 23NTD*180일*50명 | H146: = | I146: =23*180*50 -> 207,000
G147: 4. 통학차량 운영지원 | I147: =SUM(I148:I151) -> 271,400
G148: ㅇ차량 보험료 40,00NTD×2대×1년 | H148: = | I148: =40000*2 -> 80,000
G149: ㅇ차량 등록세 및 연료세 15,00NTD×2대×1년 | H149: = | I149: =15000*2 -> 30,000
G150: ㅇ주차요금 7,000NTD×3분기 | H150: = | I150: =7000*3 -> 21,000
G151: ㅇ차량 유류 15,600NTD×9월 | H151: = | I151: =15600*9 -> 140,400
G152: 5. 현장학습 지원 | I152: =SUM(I153:I154) -> 50,400
G153: ㅇ현장학습 차량 임차비 11,700NTD×2회 | H153: = | I153: =11700*2 -> 23,400
G154: ㅇ현장학습 차량비 지원(기사인건비) 750NTD×1명×12회×3시간 | H154: = | I154: =750*1*12*3 -> 27,000
G155: 6. 저소득층자녀 학비지원(교육부지원금) | I155: =I156 -> 30,000
G156: ㅇ저소득층 자녀 학비 지원금 30,000NTD | H156: = | I156: 30,000
G157: 7. 기타 학생복지 지원 | I157: 0
B158: - 업무추진비 | C158: 24,000 | E158: =SUM(I158) -> 45,000 | F158: =E158-C158 -> 21,000 | G158: 1. 기관업무추진비 | I158: =SUM(I159:I160) -> 45,000
G159: ㅇ경조사비 1,500NTD×2회 | H159: = | I159: =1500*2 -> 3,000
G160: ㅇ교직원 간담회 350NTD×12명×10회 | H160: = | I160: =350*12*10 -> 42,000
A161: 자산취득비 | C161: =C163 -> 20,000 | D161: 0 | E161: =E163 -> 20,000 | F161: =E161-C161 -> 0 | H161: =
B163: - 자산취득비 | C163: 20,000 | E163: =I163 -> 20,000 | F163: =E163-C163 -> 0 | G163: 1. 교육환경개선 | I163: =SUM(I164) -> 20,000
G164: ㅇ 사무용 비품 5,000NTD×4회 | H164: = | I164: =5000*4 -> 20,000
A165: 시설(대수선)비 | C165: =SUM(C167) -> 123,414 | D165: 0 | E165: =SUM(E167) -> 3,172,520 | F165: =E165-C165 -> 3,049,106 | H165: =
B167: - 시설비 | C167: 123,414 | E167: =I167 -> 3,172,520 | F167: =E167-C167 -> 3,049,106 | G167: 1. 시설비 | I167: =SUM(I168:I169) -> 3,172,520
G168: ㅇ 급식실 조성 사업비(교육부지원금) | H168: = | I168: 1,248,285
G169: ㅇ 시설 개보수비 1,847,633NTD×1회 | H169: = | I169: 1,924,235
A170: 수익자부담경비 | C170: =SUM(C172,C179,C181,C191,C198) -> 2,312,510 | D170: 0 | E170: =SUM(E172,E179,E181,E191,E198) -> 908,400 | F170: =E170-C170 -> -1,404,110 | H170: =
B172: - 현장학습비 | C172: 45,844 | E172: =SUM(I172,I174,I177) -> 48,000 | F172: =E172-C172 -> 2,156 | G172: 1. 현장체험학습(초등학교) | I172: =SUM(I173:I173) -> 37,000
G173: ㅇ 활동비 및 입장료 500NTD×2회×37명 | H173: = | I173: =500*2*37 -> 37,000
G174: 2. 현장체험학습(유치원) | I174: =SUM(I175:I176) -> 11,000
G175: ㅇ 활동비 및 입장료 100NTD×25명×2회 | H175: = | I175: =100*25*2 -> 5,000
G176: ㅇ 버스 임차비 3,000NTD×2회 | H176: = | I176: =3000*2 -> 6,000
G177: 3. 수학여행 | I177: =SUM(I178:I178) -> 0
B179: - 학생수련활동비 | C179: 0 | D179: 0 | E179: 0 | F179: =E179-C179 -> 0 | G179: 1. 수련활동비 | I179: 0
B181: - 학교급식비 | C181: 1,217,450 | E181: =SUM(I181,I183,I187,I185,I189) -> 0 | F181: =E181-C181 -> -1,217,450 | G181: 1. 급식 재료구입비 | I181: =SUM(I182) -> 0
H182: =
G183: 2. 급식종사원인건비 | I183: =SUM(I184:I184) -> 0
H184: =
G185: 3. 운영비 | I185: =I186 -> 0
H186: =
G187: 4. 유제품대금 | I187: =SUM(I188:I188) -> 0
H188: = | I188: 0
G189: 5. 위탁급식 대금 | I189: =SUM(I190) -> 0
H190: = | I190: 0
B191: - 방과후학교교육활동비 | C191: 454,400 | E191: =SUM(I191,I195) -> 415,400 | F191: =E191-C191 -> -39,000 | G191: 1. 방과후학교 운영 | I191: =I192+I193+I194 -> 223,400
G192: ㅇ강사수당 | H192: = | I192: 207,280
G193: ㅇ전기요금 및 수용비 | H193: = | I193: 8,120
G194: ㅇ교재 및 재료비 | H194: = | I194: =800*10 -> 8,000
G195: 2. 토요한글학교 운영 | I195: =SUM(I196:I197) -> 192,000
G196: ㅇ강사수당 | H196: = | I196: 24,000
G197: ㅇ관리자 수당 14,000NTD×12월 | H197: = | I197: =14000*12 -> 168,000
B198: - 기타수익자 부담경비 | C198: 594,816 | E198: =SUM(I198,I201,I203) -> 445,000 | F198: =E198-C198 -> -149,816 | G198: 1. 통학차량 운영 | I198: =SUM(I199:I200) -> 430,000
G199: ㅇ통학차량 기사인건비(160일분) 325NTD×1명×5시간×160일 | H199: = | I199: =325*1*5*160 -> 260,000
G200: ㅇ통학차량 기사인건비(160일분) 425NTD×1명×2.5시간×160일 | H200: = | I200: =425*160*2.5 -> 170,000
G201: 2. 졸업앨범 제작(초등학교) | I201: =SUM(I202:I202) -> 0
H202: =
G203: 3. 졸업앨범 제작(유치원) | I203: =SUM(I204:I204) -> 15,000
G204: ㅇ졸업앨범제작비 10명× 1,500 NTD | H204: = | I204: =10*1500 -> 15,000
A205: 예비비및기타 | C205: 0 | D205: 0 | E205: =I205 -> 0 | F205: 0 | H205: = | I205: =I207+I209+I211+I213 -> 0
B207: - 예비비 | C207: 0 | D207: 0 | F207: 0 | G207: 1. 예비비
B209: - 다음연도이월금 | C209: 0 | D209: 0 | E209: =I209 -> 0 | F209: 0 | G209: 1. 다음연도 이월금 | I209: =I210 -> 0
... 3 more rows
